Workbook

Sheet Instructions

Sheet Ordering Tool
B1: CSFP State and Local Agency Order Planning Tool
B2: Agency: | D2: Caseload:
A3: Each food package must contain only one option from each category below. Please see the Instructions tab for more detailed instructions. | J3: HIDE
A4: Food Package Category | B4: Food Package Option | C4: Amount Per Food Package | D4: Product Pack Size | E4: Units Per Client | F4: Select Ordering Option | G4: Total Units Per Month | I4: Cases Needed Per Month | J4: Cases/Truck | K4: Estimated Trucks Needed Per Month | L4: Estimated Trucks Needed Per Quarter
C5: 1 Bottle of Juice (64 oz) | D5: 8 | E5: 1 | G5: =IFERROR(F5*$E$2,"-") -> 0 | I5: =IFERROR(ROUNDUP(G5/D5,0),"-") -> 0 | J5: 1025 | K5: =IFERROR(I5/J5,"-") -> 0 | L5: =IFERROR(K5*3,"-") -> 0
A6: Fruits and Juice: | C6: 3 Cans of Fruit (15.5 oz) | D6: 24 | E6: 3 | G6: =IFERROR(F6*$E$2,"-") -> 0 | I6: 0 | J6: 1620 | K6: =IFERROR(I6/J6,"-") -> 0 | L6: =IFERROR(K6*3,"-") -> 0
A7: Press one of the 4 options only. | C7: 2 Bottles of Juice (64 oz) | D7: 8 | E7: 2 | G7: 0 | I7: 0 | J7: 1025 | K7: 0 | L7: 0
A8: Option 1: 1 juice and 3 cans fruit; | C8: 2 Cans of Fruit (15.5 oz) | D8: 24 | E8: 2 | G8: 0 | I8: 0 | J8: 1620 | K8: 0 | L8: 0
A9: Option 2: 2 juices and 2 cans fruit; | C9: 1 Package of Raisins (15 oz) | D9: 24 | E9: 1 | G9: 0 | I9: 0 | J9: 1728 | K9: 0 | L9: 0
A10: Option 3: 1 package raisins, 1 juice, | C10: 1 Bottle of Juice (64 oz) | D10: 8 | E10: 1 | G10: 0 | I10: 0 | J10: 1025 | K10: 0 | L10: 0
A11: and 2 cans fruit; or | C11: 2 Cans of Fruit (15.5 oz) | D11: 24 | E11: 2 | G11: 0 | I11: 0 | J11: 1620 | K11: 0 | L11: 0
A12: Option 4: 1 package raisins, 2 | C12: 1 Package of Raisins (15 oz) | D12: 24 | E12: 1 | G12: 0 | I12: 0 | J12: 1728 | K12: 0 | L12: 0
A13: juices, and 1 can fruit. | C13: 2 Bottles of Juice (64 oz) | D13: 8 | E13: 2 | G13: 0 | I13: 0 | J13: 1025 | K13: 0 | L13: 0
C14: 1 Can of Fruit (15.5 oz) | D14: 24 | E14: 1 | G14: 0 | I14: 0 | J14: 1620 | K14: 0 | L14: 0
F15: =SUM(F5:F14) -> 0 | G15: Out Of 4 Units Selected
A16: Vegetables:
A17: Press one of the two options only. | C17: 8 Cans of Vegetables or Soup (10.5 to 15.5 oz) | D17: 24 | E17: 8 | G17: =IFERROR(F17*$E$2,"-") -> 0 | I17: =IFERROR(ROUNDUP(G17/D17,0),"-") -> 0 | J17: 1620 | K17: 0 | L17: 0
A18: Option 1: 8 cans vegetables or soup; | C18: 6 Cans of Vegetables or Soup (10.5 to 15.5 oz) | D18: 24 | E18: 6 | G18: =IFERROR(F18*$E$2,"-") -> 0 | I18: =IFERROR(ROUNDUP(G18/D18,0),"-") -> 0 | J18: 1620 | K18: 0 | L18: 0
A19: Option 2: 6 cans vegetables or soup, | C19: 1 Package of Dehydrated Potatoes (1 lb) | D19: 12 | E19: 1 | G19: =IFERROR(F19*$E$2,"-") -> 0 | I19: =IFERROR(ROUNDUP(G19/D19,0),"-") -> 0 | J19: 2500 | K19: 0 | L19: 0
A20: and 1 package dehydrated potatoes. | F20: =F19*2+F18+F17 -> 0 | G20: Out Of 8 Units Selected
A22: Cheese: | C22: 1 Package of Cheese (2 lb) | D22: 12 | E22: 1 | F22: 1 | G22: =IFERROR(F22*$E$2,"-") -> 0 | I22: =IFERROR(ROUNDUP(G22/D22,0),"-") -> 0 | J22: 1650 | K22: 0 | L22: 0
A23: One package cheese. | F23: =SUM(F22) -> 1 | G23: Out Of 1 Units Selected
A25: Milk: Press one of the three options only. | C25: 2 UHT Fluid Milk 1% (32 oz) | D25: 12 | E25: 2 | G25: =IFERROR(F25*$E$2,"-") -> 0 | I25: =IFERROR(ROUNDUP(G25/D25,0),"-") -> 0 | J25: 1500 | K25: 0 | L25: 0
A26: Option 1: 2 UHT fluid milk 1%; | C26: 1 UHT Milk (32 oz) | D26: 12 | E26: 1 | G26: =IFERROR(F26*$E$2,"-") -> 0 | I26: =IFERROR(ROUNDUP(G26/D26,0),"-") -> 0 | J26: 1500 | K26: 0 | L26: 0
A27: Option 2: 1 UHT Milk and 1 12.8 oz | C27: 1 Instant Nonfat Dry Milk (12.8 oz.) | D27: 24 | E27: 1 | G27: =IFERROR(F27*$E$2,"-") -> 0 | I27: =IFERROR(ROUNDUP(G27/D27,0),"-") -> 0 | J27: 1560 | K27: 0 | L27: 0
A28: instant nonfat dry milk (NFDM); or | C28: 1 UHT Fluid Milk 1% (32 oz.) (monthly) | D28: 12 | E28: 1 | G28: =IFERROR(F28*$E$2,"-") -> 0 | I28: =IFERROR(ROUNDUP(G28/D28,0),"-") -> 0 | J28: 1500 | K28: 0 | L28: 0
A29: Option 3: 1 UHT milk (every month) and 1 | C29: 1 Instant Nonfat Dry Milk (25.6 oz) (every other month) | D29: 12 | E29: 1 | G29: =IFERROR(F29*$E$2/2,"-") -> 0 | I29: 0 | J29: 1400 | K29: 0 | L29: 0
A30: 25.6 oz NFDM (every other month). | F30: =SUM(F25:F29) -> 0 | G30: Out Of 2 Units Selected
A32: Meat, Poultry, and Fish: | B32: Option 1 | C32: 1 Shelf Stable Package of Beef, Beef Stew, or Chili (24 oz) | D32: 24 | E32: 1 | G32: =IFERROR(F32*$E$2,"-") -> 0 | I32: =IFERROR(ROUNDUP(G32/D32,0),"-") -> 0 | J32: 1000 | K32: 0 | L32: 0
A33: Manually input quantities into Column F. | B33: And one of: | C33: 1 Unit of Salmon (14.75 oz) | D33: 24 | E33: 1 | G33: 0 | I33: 0 | J33: 1520 | K33: 0 | L33: 0
A34: Option 1: 1 beef/beef stew/chili (24 oz) | B34: OR | C34: 1 Unit of Tuna (12 oz) | D34: 24 | E34: 1 | G34: 0 | I34: 0 | J34: 1800 | K34: 0 | L34: 0
A35: and 1 poultry/fish (10 to 15 oz); or | B35: OR | C35: 1 Unit of Chicken (10 to 15 oz) | D35: 36 | E35: 1 | G35: 0 | I35: 0 | J35: 1600 | K35: 0 | L35: 0
A36: Option 2: 3 shelf-stable package poultry | B36: Option 2 | C36: 1 Unit of Salmon (14.75 oz) | D36: 24 | E36: 1 to 3 | G36: 0 | I36: 0 | J36: 1520 | K36: 0 | L36: 0
A37: and/or fish (any combination). | C37: 1 Unit of Tuna (12 oz) | D37: 24 | E37: 1 to 3 | G37: 0 | I37: 0 | J37: 1800 | K37: 0 | L37: 0
B38: 3 TOTAL | C38: 1 Unit of Chicken (10 to 15 oz) | D38: 36 | E38: 1 to 3 | G38: 0 | I38: 0 | J38: 1600 | K38: 0 | L38: 0
F39: =F32*2+SUM(F33:F38) -> 0 | G39: Out of 3 Units Selected
A41: Plant-Based Protein: | B41: Option 1 | C41: Canned Beans (15.5 oz) | D41: 24 | E41: 1 to 3 | G41: =IFERROR(F41*$E$2,"-") -> 0 | I41: =IFERROR(ROUNDUP(G41/D41,0),"-") -> 0 | J41: 1530 | K41: 0 | L41: 0
A42: Manually input quantities into Column F. | C42: Dry Beans or Lentils (1 lb) | D42: 24 | E42: 1 to 3 | G42: 0 | I42: 0 | J42: 1680 | K42: 0 | L42: 0
A43: Option 1: 3 units of any combination of | B43: 3 TOTAL | C43: Peanut Butter (16 to 18 oz) | D43: 12 | E43: 1 to 3 | G43: 0 | I43: 0 | J43: 2880 | K43: 0 | L43: 0
A44: canned beans, 1 lb dry beans or lentils, | B44: Option 2 | C44: Dry Beans or Lentils (2 lb) | D44: 12 | E44: 1 | G44: 0 | I44: 0 | J44: 1680 | K44: 0 | L44: 0
A45: and peanut butter; | B45: And one of: | C45: Canned Beans (15.5 oz) | D45: 24 | E45: 1 | G45: 0 | I45: 0 | J45: 1530 | K45: 0 | L45: 0
A46: Option 2: 1 2 lb dry beans or lentils, and 1 | B46: OR | C46: Dry Beans or Lentils (1 lb) | D46: 24 | E46: 1 | G46: 0 | I46: 0 | J46: 1680 | K46: 0 | L46: 0
A47: unit of canned beans, peanut butter, or 1 lb dry beans or lentils. | B47: OR | C47: Peanut Butter (16 to 18 oz) | D47: 12 | E47: 1 | G47: 0 | I47: 0 | J47: 2880 | K47: 0 | L47: 0
F48: =SUM(F41:F43)+(F44*2)+F45+F46+F47 -> 0 | G48: Out of 3 Units Selected
A50: Cereals: | B50: Option 1 | C50: Rolled Oats (18 oz) | D50: 12 | E50: 1 to 2 | G50: =IFERROR(F50*$E$2,"-") -> 0 | I50: =IFERROR(ROUNDUP(G50/D50,0),"-") -> 0 | J50: 2240 | K50: 0 | L50: 0
A51: Manually input Option 1 quantities into | C51: Farina (18 oz) | D51: 10 | E51: 1 to 2 | G51: 0 | I51: 0 | J51: 3400 | K51: 0 | L51: 0
A52: column F, or press Option 2 or 3 only. | C52: Grits (2 lb) | D52: 12 | E52: 1 to 2 | G52: 0 | I52: 0 | J52: 1728 | K52: 0 | L52: 0
A53: Option 1: 2 units of any combination of | C53: Cereal - 10 Pack Size (12 to 18 oz) | D53: 10 | E53: 1 to 2 | G53: 0 | I53: 0 | J53: 2160 | K53: 0 | L53: 0
A54: cereal, farina, rolled oats (18 oz) and grits | C54: Cereal - 12 Pack Size (12 to 18 oz) | D54: 12 | E54: 1 to 2 | G54: 0 | I54: 0 | J54: 1344 | K54: 0 | L54: 0
A55: (2 lb); | C55: Cereal - 14 Pack Size (12 to 18 oz) | D55: 14 | E55: 1 to 2 | G55: 0 | I55: 0 | J55: 1344 | K55: 0 | L55: 0
A56: Option 2: 1 42 to 48 oz unit rolled oats; or | B56: 2 TOTAL | C56: Cereal - 16 Pack Size (12 to 18 oz) | D56: 16 | E56: 1 to 2 | G56: 0 | I56: 0 | J56: 1344 | K56: 0 | L56: 0
A57: Option 3: 1 5 lb unit grits (every other | C57: Rolled Oats (42 to 48 oz) | D57: 12 | E57: 1 | G57: 0 | I57: 0 | J57: 1040 | K57: 0 | L57: 0
A58: month). | C58: Grits (5 lb) (every other month) | D58: 8 | E58: 1 | G58: =IFERROR(F58*$E$2/2,"-") -> 0 | I58: 0 | J58: 1071 | K58: 0 | L58: 0
F59: 1 | G59: 0 | I59: - | K59: - | L59: -
F60: =SUM(F50:F56)+(F57*2)+(F58*2) -> 0 | G60: Out Of 2 Units Selected
A62: Pasta and Rice: | B62: Option 1 | C62: Pasta - 12 Pack Size (1 lb) | D62: 12 | E62: 1 to 2 | G62: =IFERROR(F62*$E$2,"-") -> 0 | I62: =IFERROR(ROUNDUP(G62/D62,0),"-") -> 0 | J62: 2700 | K62: 0 | L62: 0
A63: Manually input quantities into Column F. | C63: Pasta - 20 Pack Size (1 lb) | D63: 20 | E63: 1 to 2 | G63: 0 | I63: 0 | J63: 1840 | K63: 0 | L63: 0
A64: Option 1: 2 units of any combination of | B64: 2 TOTAL | C64: Rice (1 lb) | D64: 24 | E64: 1 to 2 | G64: 0 | I64: 0 | J64: 1680 | K64: 0 | L64: 0
A65: pasta and 1 lb rice; | B65: Option 2 | C65: Rice (2 lb) - 24 Pack Size | D65: 24 | E65: 1 | G65: 0 | I65: 0 | J65: 875 | K65: 0 | L65: 0
A66: Option 2: 1 2 lb unit rice. | B66: OR | C66: Rice (2 lb) - 30 Pack Size | D66: 30 | E66: 1 | G66: 0 | I66: 0 | J66: 700 | K66: 0 | L66: 0
F67: =F66*2+F65*2+F62+F63+F64 -> 0 | G67: Out Of 2 Units Selected
A70: Last Updated: August 2019

Sheet Order Reference Chart
A1: Direct | B1: Order Reference Chart
B3: Agency: | F3: Caseload:
A5: Food Package Category | B5: Material Number | C5: Product | D5: Units per food package | E5: Units per Case | F5: Cases per Truck | G5: Servings per Truck | H5: 1 Truck lasts X Months
A7: Fruits and Juice: | B7: 100207 | C7: Applesauce | D7: 3 | E7: 24 | F7: 1620 | G7: =PRODUCT(E7*F7/D7) -> 12960 | H7: =IFERROR(PRODUCT(G7/$H$3), "-") -> -
B8: 100210 | C8: Apricot Halves | D8: 2 | E8: 24 | F8: 1620 | G8: =PRODUCT(E8*F8/D8) -> 19440 | H8: =IFERROR(PRODUCT(G8/$H$3), "-") -> -
A9: Option 1: 1 juice and 3 cans fruit; | B9: 100211 | C9: Mixed Fruit | D9: 1 | E9: 24 | F9: 1620 | G9: =PRODUCT(E9*F9/D9) -> 38880 | H9: =IFERROR(PRODUCT(G9/$H$3), "-") -> -
A10: Option 2: 2 juices and 2 cans fruit; | B10: 100218 | C10: Peaches
A11: Option 3: 1 package raisins, 1 juice, | B11: 100223 | C11: Pears
A12: and 2 cans fruit; or | B12: 100233 | C12: Plums
A13: Option 4: 1 package raisins, 2 | B13: 100295 | C13: Raisins | D13: 1 | E13: 24 | F13: 1728 | G13: =PRODUCT(E13*F13/D13) -> 41472 | H13: =IFERROR(PRODUCT(G13/$H$3), "-") -> -
A14: juices, and 1 can fruit. | B14: 100893 | C14: Apple Juice | D14: 2 | E14: 8 | F14: 1025 | G14: 4100 | H14: -
B15: 100895 | C15: Grape (Concord) Juice | D15: 1 | E15: 8 | F15: 1025 | G15: 8200 | H15: -
B16: 100897 | C16: Orange Juice
B17: 100899 | C17: Cranberry-Apple Juice
B18: 100898 | C18: Tomato Juice
B21: 100306 | C21: Green Beans | D21: 8 | E21: 24 | F21: 1620 | G21: =PRODUCT(E21*F21/D21) -> 4860 | H21: -
A22: Vegetables: | B22: 100314 | C22: Peas | D22: 6 | E22: 24 | F22: 1620 | G22: 6480 | H22: -
B23: 100328 | C23: Tomatoes Diced
A24: Option 1: 8 cans vegetables or soup; | B24: 100335 | C24: Spaghetti Sauce (meatless)
A25: Option 2: 6 cans vegetables or soup, | B25: 100316 | C25: Sweet Potatoes w/ Syrup | D25: 8 | E25: 24 | F25: 1530 | G25: 4590 | H25: -
A26: and 1 package dehydrated | B26: 100331 | C26: Potatoes (white slices) | D26: 6 | E26: 24 | F26: 1530 | G26: 6120 | H26: -
A27: potatoes. | B27: 100323 | C27: Spinach | D27: 8 | E27: 24 | F27: 1615 | G27: 4845 | H27: -
D28: 6 | E28: 24 | F28: 1615 | G28: 6460 | H28: -
B29: 100321 | C29: Vegetable Soup | D29: 8 | E29: 24 | F29: 2200 | G29: 6600 | H29: -
D30: 6 | E30: 24 | F30: 2200 | G30: 8800 | H30: -
B31: 100337 | C31: Potatoes (dehydrated flakes) | D31: 1 | E31: 12 | F31: 2500 | G31: 30000 | H31: -
A34: Milk: | B34: 100050 | C34: UHT Milk (1%) | D34: 2 | E34: 12 | F34: 1500 | G34: =PRODUCT(E34*F34/D34) -> 9000 | H34: -
A35: Option 1: 2 UHT fluid milk 1%; | D35: 1 | E35: 12 | F35: 1500 | G35: 18000 | H35: -
A36: Option 2: 1 UHT Milk and 1 (12.8 oz) | B36: 111006 | C36: Nonfat Dry Milk (Instant) (12.8 oz) | D36: 1 | E36: 24 | F36: 1560 | G36: 37440 | H36: -
A37: instant nonfat dry milk (NFDM); or
A38: Option 3: 1 UHT milk (every month) and
A39: 1 25.6 oz NFDM (every other month).
A41: Cheese:
A42: One package cheese. | B42: 100035 | C42: Cheese Blend (American Skim) | D42: 1 | E42: 12 | F42: 1650 | G42: 19800 | H42: -
A45: Meat, Poultry, and Fish: | B45: 100127 | C45: Beef (24 oz) | D45: 1 | E45: 24 | F45: 1000 | G45: 24000 | H45: -
B46: 100138 | C46: Beef Chili without Beans (24 oz) | D46: 1 | E46: 24 | F46: 1000 | G46: 24000 | H46: -
A47: Option 1: 1 beef/beef stew/chili (24 oz) | B47: 100526 | C47: Beef Stew (24 oz) | D47: 3 | E47: 24 | F47: 1000 | G47: =PRODUCT(E47*F47/D47) -> 8000 | H47: -
A48: and 1 poultry/fish (10 to 15 oz); or | B48: 100194 | C48: Tuna Chunk Light | D48: 3 | E48: 24 | F48: 1800 | G48: 14400 | H48: -
A49: Option 2: 3 shelf-stable package poultry | B49: 110940 | C49: Chicken Boned (Can) | D49: 2 | E49: 24 | F49: 1800 | G49: 21600 | H49: -
A50: and/or fish (any combination). | D50: 1 | E50: 24 | F50: 1800 | G50: 43200 | H50: -
B51: 110477 | C51: Chicken Boned (Pouch) | D51: 3 | E51: 24 | F51: 1600 | G51: 12800 | H51: -
B52: 110478 | D52: 2 | E52: 24 | F52: 1600 | G52: 19200 | H52: -
D53: 1 | E53: 24 | F53: 1600 | G53: 38400 | H53: -
B54: 110563 | C54: Salmon Pink | D54: 3 | E54: 24 | F54: 1520 | G54: 12160 | H54: -
D55: 2 | E55: 24 | F55: 1520 | G55: 18240 | H55: -
D56: 1 | E56: 24 | F56: 1520 | G56: 36480 | H56: -
A58: Plant-Based Protein: | B58: 100363 | C58: Vegetarian Beans | D58: 3 | E58: 24 | F58: 1530 | G58: 12240 | H58: -
B59: 110020 | C59: Black Beans | D59: 2 | E59: 24 | F59: 1530 | G59: 18360 | H59: -
A60: Option 1: 3 units of any combination of | B60: 110021 | C60: Pinto Beans | D60: 1 | E60: 24 | F60: 1530 | G60: 36720 | H60: -
A61: canned beans, (1 lb) dry beans or lentils, | B61: 100372 | C61: Light Red Kidney Beans
A62: and peanut butter; or | B62: 100395 | C62: Peanut Butter Smooth (16 oz) | D62: 3 | E62: 12 | F62: 2880 | G62: 11520 | H62: -
A63: Option 2: 1 2 lb dry beans or lentils, and 1 | D63: 2 | E63: 12 | F63: 2880 | G63: 17280 | H63: -
A64: unit of canned beans, peanut butter, or | D64: 1 | E64: 12 | F64: 2880 | G64: 34560 | H64: -
A65: (1 lb) dry beans or lentils. | B65: 111063 | C65: Pinto Dry Beans (1 lb) | D65: 3 | E65: 24 | F65: 1680 | G65: 13440 | H65: -
B66: 111067 | C66: Great Northern Dry Beans (1 lb) | D66: 2 | E66: 24 | F66: 1680 | G66: 20160 | H66: -
B67: 111068 | C67: Baby Lima Dry Beans (1 lb) | D67: 1 | E67: 24 | F67: 1680 | G67: 40320 | H67: -
B68: 111102 | C68: Lentil Dry Beans (1 lb)
B69: 111080 | C69: Light Red Kidney Dry Beans (1 lb)
B70: 100380 | C70: Great Northern Dry Beans (2 lb) | D70: 1 | E70: 12 | F70: 1680 | G70: =PRODUCT(E70*F70/D70) -> 20160 | H70: -
B71: 100382 | C71: Pinto Dry Beans (2 lb) | D71: 1 | E71: 12 | F71: 1680 | G71: =PRODUCT(E71*F71/D71) -> 20160 | H71: -
B72: 100385 | C72: Light Red Kidney Dry Beans (2 lb) | D72: 1 | E72: 12 | F72: 1680 | G72: =PRODUCT(E72*F72/D72) -> 20160 | H72: =IFERROR(PRODUCT(G72/$H$3), "-") -> -
A74: Cereals: | B74: 100449 | C74: Corn Flakes Cereal | D74: 2 | E74: 12 | F74: 1080 | G74: =PRODUCT(E74*F74/D74) -> 6480 | H74: =IFERROR(PRODUCT(G74/$H$3), "-") -> -
B75: 100457 | C75: Rice Crisps Cereal | D75: 1 | E75: 12 | F75: 1080 | G75: =PRODUCT(E75*F75/D75) -> 12960 | H75: =IFERROR(PRODUCT(G75/$H$3), "-") -> -
A76: Option 1: 2 units of any combination of | B76: 110265 | C76: Corn Rice Biscuits Cereal
A77: cereal, farina, rolled oats (18 oz) and | B77: 100929 | C77: Oat Circles Cereal | D77: 2 | E77: 12 | F77: 1344 | G77: =PRODUCT(E77*F77/D77) -> 8064 | H77: =IFERROR(PRODUCT(G77/$H$3), "-") -> -
A78: grits (2 lb); | B78: 100933 | C78: Wheat Bran Flakes Cereal | D78: 1 | E78: 12 | F78: 1344 | G78: =PRODUCT(E78*F78/D78) -> 16128 | H78: =IFERROR(PRODUCT(G78/$H$3), "-") -> -
A79: Option 2: 1 42 to 48 oz unit rolled oats; or | B79: 110740 | C79: Corn Squares Cereal
A80: Option 3: 1 5 lb unit grits (every other | B80: 110374 | C80: Shredded Wheat Cereal | D80: 2 | E80: 16 | F80: 2160 | G80: =PRODUCT(E80*F80/D80) -> 17280 | H80: =IFERROR(PRODUCT(G80/$H$3), "-") -> -
A81: month). | D81: 1 | E81: 16 | F81: 2160 | G81: 34560 | H81: -
B82: 110880 | C82: Wheat Farina | D82: 2 | E82: 10 | F82: 3400 | G82: 17000 | H82: -
D83: 1 | E83: 10 | F83: 3400 | G83: 34000 | H83: -
B84: 111074 | C84: Rolled Oats (18 oz) | D84: 2 | E84: 12 | F84: 2240 | G84: 13440 | H84: -
D85: 1 | E85: 12 | F85: 2240 | G85: 26880 | H85: -
B86: 111082 | C86: White Corn Grits (2 lb) | D86: 2 | E86: 12 | F86: 1728 | G86: 10368 | H86: -
D87: 1 | E87: 12 | F87: 1728 | G87: 20736 | H87: -
B88: 100465 | C88: Rolled Oats (42/48 oz) | D88: 1 | E88: 12 | F88: 1040 | G88: 12480 | H88: -
B89: 100470 | C89: White Corn Grits (5 lb) | D89: 0.5 | E89: 8 | F89: 1071 | G89: 17136 | H89: -
A91: Pasta and Rice: | B91: 110450 | C91: Spaghetti Pasta | D91: 2 | E91: 20 | F91: 1840 | G91: 18400 | H91: -
D92: 1 | E92: 20 | F92: 1840 | G92: 36800 | H92: -
A93: Option 1: 2 units of any combination of | B93: 110511 | C93: Macaroni Elbow Pasta | D93: 2 | E93: 20 | F93: 1776 | G93: 17760 | H93: -
A94: pasta and 1 lb rice; or | D94: 1 | E94: 20 | F94: 1776 | G94: 35520 | H94: -
A95: Option 2: 1 2 lb unit rice. | B95: 110777 | C95: Whole Grain Rotini Pasta | D95: 2 | E95: 12 | F95: 2700 | G95: 16200 | H95: -
D96: 1 | E96: 12 | F96: 2700 | G96: 32400 | H96: -
B97: 111075 | C97: Long Grain Rice (1 lb) | D97: 2 | E97: 24 | F97: 1680 | G97: 20160 | H97: -
D98: 1 | E98: 24 | F98: 1680 | G98: 40320 | H98: -
B99: 111083 | C99: Brown Rice (1 lb) | D99: 2 | E99: 30 | F99: 1400 | G99: 21000 | H99: -
D100: 1 | E100: 30 | F100: 1400 | G100: 42000 | H100: -
B101: 100491 | C101: Long Grain Rice (2 lb) (24 count) | D101: 1 | E101: 24 | F101: 875 | G101: =PRODUCT(E101*F101/D101) -> 21000 | H101: -
B102: 100492 | C102: Long Grain Rice (2 lb) (30 count) | D102: 1 | E102: 30 | F102: 700 | G102: =PRODUCT(E102*F102/D102) -> 21000 | H102: -

Sheet Sheet2 (hidden)
A5: FOOD PACKAGE CATEGORY
D6: Product Pack Size | E6: Category Options | F6: Units Per Client | G6: Total Units Per Month | I6: How Many Cases Do I Need Per Month? | J6: Direct Orders--How Many Trucks Do I Need Per Month?
A7: Fruits and Juice | B7: Option 1 | C7: 1 Bottle of Juice | D7: 8 | F7: 1 | G7: =F7*$F$2 -> 0 | I7: =G7*D7 -> 0
C8: 3 Cans of Fruit | D8: 24 | F8: 3 | G8: =F8*$F$2 -> 0 | I8: =G8*D8 -> 0
B9: Option 2 | C9: 2 Bottles of Juice | D9: 8 | F9: 2 | G9: 0 | I9: 0
C10: 2 Cans of Fruit | D10: 24 | F10: 2 | G10: 0 | I10: 0
B11: Option 3 | C11: 1 Package of Raisins | D11: 24 | F11: 1 | G11: 0 | I11: 0
C12: 1 Bottle of Juice | D12: 8 | F12: 1 | G12: 0 | I12: 0
C13: 2 Cans of Fruit | D13: 24 | F13: 2 | G13: 0 | I13: 0
B14: Option 4 | C14: 1 Package of Raisins | D14: 24 | F14: 1 | G14: 0 | I14: 0
C15: 2 Bottles of Juice | D15: 8 | F15: 2 | G15: 0 | I15: 0
C16: 1 Can of Fruit | D16: 24 | F16: 1 | G16: 0 | I16: 0
A18: Vegetables | B18: Option 1 | C18: 8 Cans of Vegetables/Soup | D18: 24 | F18: 8 | G18: 0 | I18: 0
B19: Option 2 | C19: 6 Cans of Vegetables/Soup | D19: 24 | F19: 6 | G19: 0 | I19: 0
C20: 1 Package of Potato Flakes | D20: 12 | F20: 1 | G20: 0 | I20: 0
A22: Cheese | C22: 1 Package of Cheese | D22: 12 | F22: 1 | G22: 0 | I22: 0
A24: Milk | B24: Option 1 | C24: 2 UHT Milk | D24: 12 | F24: 2 | G24: 0 | I24: 0
B25: Option 2 | C25: 1 UHT Milk | D25: 12 | F25: 1 | G25: 0 | I25: 0
C26: 1 12.8 oz Nonfat Dry Milk | D26: 24 | F26: 1 | G26: 0 | I26: 0
A28: Meat, Poultry, and Fish | B28: Option 1 | C28: 1 Can Beef, Beef Stew, or Chili | D28: 24 | F28: 1 | G28: 0 | I28: 0
C29: 1 Can Salmon | D29: 24 | F29: 1 | G29: 0 | I29: 0
B30: OR | C30: 1 Can Tuna | D30: 24 | F30: 1 | G30: 0 | I30: 0
B31: OR | C31: 1 Can Chicken | D31: 24 | F31: 1 | G31: 0 | I31: 0
B32: Option 2 | C32: Can Salmon | D32: 24 | F32: 1 | G32: 0 | I32: 0
C33: Can Tuna | D33: 24 | F33: 1 | G33: 0 | I33: 0
B34: 3 TOTAL | C34: Can Chicken | D34: 24 | F34: 1 | G34: 0 | I34: 0
A36: Plant-Based Protein | C36: Canned Beans | D36: 24 | F36: 1 | G36: 0 | I36: 0
C37: Dry Beans/Lentils | D37: 24 | F37: 1 | G37: 0 | I37: 0
B38: 3 TOTAL | C38: Peanut Butter | D38: 12 | F38: 1 | G38: 0 | I38: 0
A40: Cereals | C40: Rolled Oats | D40: 12 | F40: 1 | G40: 0 | I40: 0
C41: Farina | D41: 24 | F41: 1 | G41: 0 | I41: 0
C42: Grits | D42: 12 | F42: 1 | G42: 0 | I42: 0
C43: Cereal - 8 Pack Size | D43: 8 | F43: 1 | G43: 0 | I43: 0
C44: Cereal - 10 Pack Size | D44: 10 | F44: 1 | G44: 0 | I44: 0
C45: Cereal - 12 Pack Size | D45: 12 | F45: 1 | G45: 0 | I45: 0
C46: Cereal - 14 Pack Size | D46: 14 | F46: 1 | G46: 0 | I46: 0
B47: 2 TOTAL | C47: Cereal - 16 Pack Size | D47: 16 | F47: 1 | G47: 0 | I47: 0
A49: Pasta and Rice | C49: Pasta - 12 Pack Size | D49: 12 | F49: 1 | G49: 0 | I49: 0
C50: Pasta - 20 Pack Size | D50: 20 | F50: 1 | G50: 0 | I50: 0
C51: Pasta - 24 Pack Size | D51: 24 | F51: 1 | G51: 0 | I51: 0
B52: 2 TOTAL | C52: Rice | D52: 24 | F52: 1 | G52: 0 | I52: 0

Sheet Sheet1 (hidden)
